lending/lending_fUSD_20250406
["ID","MTS","AMOUNT","RATE_DAILY","PERIOD"]
[357248294,1743942660325,-156.13,0.0005205,120]
[357248295,1743942660340,-540.62,0.00052293,120]
[357248296,1743942660355,-11801.68,0.000526,120]
[357248297,1743942660367,-14043.02,0.000526,120]
[357248298,1743942660377,-218.79,0.00052672,2]
[357248299,1743942660496,-500.0,0.00052689,60]
[357248300,1743942660515,-1670.58,0.000529,60]
[357248301,1743942660524,-500000.0,0.0005299,120]
[357248302,1743942660533,-2626.57469612,0.00053,120]
[357248303,1743942660543,-151.0,0.00053123,120]
[357248304,1743942660552,-2000.0,0.000534,2]
[357248305,1743942660562,-500.0,0.00053424,30]
[357248306,1743942660571,-150.57,0.00053425,120]
[357248307,1743942660580,-500.0,0.00053619,60]
[357248308,1743942660589,-340.04,0.00053782,100]
[357248309,1743942660598,-500.0,0.00053972,32]
[357248310,1743942660608,-500.0,0.00054,120]
[357248311,1743942660617,-150.0,0.00054,120]
[357248312,1743942660627,-40048.30811533,0.00054,120]
[357248313,1743942660636,-217.54443171,0.00054,120]
[357248314,1743942660646,-406.0,0.00054,120]
[357248315,1743942660660,-167.05,0.00054384,120]
[357248316,1743942660671,-517.1470534,0.0005452,34]
[357248317,1743942660680,-500.0,0.0005479,120]
[357248318,1743942660689,-195181.22541424,0.0005479,120]
[357248319,1743942660699,-1359.752177,0.00054794,120]
[357248320,1743942660708,-191.282216,0.00054794,120]
[357248321,1743942660717,-765.128864,0.00054794,120]
[357248322,1743942660728,-178.460504,0.00054794,120]
[357248323,1743942660738,-166.748126,0.00054794,120]
[357248324,1743942660748,-161.942355,0.00054794,120]
[357248325,1743942660757,-500.0,0.00054794,120]
[357248326,1743942660767,-151.0,0.00054794,120]
[357248327,1743942660776,-502.76925708,0.00054794,120]
[357248328,1743942660786,-500.0,0.00054794,120]
[357248329,1743942660795,-500.0,0.00054794,120]
[357248330,1743942660804,-502.12832484,0.00054794,120]
[357248331,1743942660813,-3762.926346,0.00054794,120]
[357248332,1743942660823,-502.56864751,0.00054794,120]
[357248333,1743942660832,-500.0,0.00054794,120]
[357248335,1743942660841,-182.27934807,0.00054794,120]
[357248336,1743942660850,-523.34068879,0.00054794,120]
[357248337,1743942660861,-500.0,0.00054794,120]
[357248338,1743942660871,-504.99845507,0.00054794,120]
[357248339,1743942660880,-500.0,0.00054794,120]
[357248340,1743942660889,-503.92384261,0.00054794,120]
[357248341,1743942660899,-507.20395288,0.00054794,120]
[357248342,1743942660908,-504.0648347,0.00054794,120]
[357248343,1743942660917,-503.43775018,0.00054794,120]
[357248344,1743942660927,-505.68758253,0.00054794,120]
[357248345,1743942660936,-512.25166671,0.00054794,120]
[357248346,1743942660944,-506.89665127,0.00054794,120]
[357248347,1743942660953,-503.35842181,0.00054794,120]
[357248348,1743942660962,-505.90293633,0.00054794,120]
[357248349,1743942660972,-500.0,0.00054794,120]
[357248350,1743942660981,-501.82703036,0.00054794,120]
[357248351,1743942660991,-507.64199842,0.00054794,120]
[357248352,1743942661000,-159.96016697,0.00054794,120]
[357248353,1743942661010,-500.0,0.00054794,120]
[357248354,1743942661019,-291.20522262,0.00054794,120]
[357248355,1743942661029,-500.0,0.00054794,120]
[357248356,1743942661039,-533.08998831,0.00054794,120]
[357248357,1743942661048,-500.0,0.00054794,120]
[357248358,1743942661058,-511.19102551,0.00054794,120]
[357248359,1743942661067,-511.01866525,0.00054794,120]
[357248360,1743942661077,-522.72683102,0.00054794,120]
[357248361,1743942661086,-524.27696385,0.00054794,120]
[357248362,1743942661095,-500.0,0.00054794,120]
[357248363,1743942661105,-500.0,0.00054794,120]
[357248364,1743942661119,-631.18951325,0.00054794,120]
[357248365,1743942661129,-513.26248059,0.00054794,120]
[357248366,1743942661141,-370.62372102,0.00054794,120]
[357248367,1743942661151,-500.0,0.00054794,120]
[357248368,1743942661160,-527.89706912,0.00054794,120]
[357248369,1743942661170,-543.1034946,0.00054794,120]
[357248370,1743942661181,-500.0,0.00054794,120]
[357248371,1743942661191,-500.0,0.00054794,120]
[357248372,1743942661200,-500.74695022,0.00054794,120]
[357248373,1743942661211,-500.0,0.00054794,120]
[357248374,1743942661221,-500.0,0.00054794,120]
[357248375,1743942661230,-500.0,0.00054794,120]
[357248376,1743942661240,-526.0573389,0.00054794,120]
[357248377,1743942661250,-520.4195599,0.00054794,120]
[357248378,1743942661259,-500.0,0.00054794,120]
[357248379,1743942661268,-500.0,0.00054794,120]
[357248380,1743942661278,-633.66358068,0.00054794,120]
[357248381,1743942661287,-500.0,0.00054794,120]
[357248382,1743942661297,-500.0,0.00054794,120]
[357248383,1743942661308,-500.0,0.00054794,120]
[357248384,1743942661317,-509.24987459,0.00054794,120]
[357248385,1743942661327,-500.0,0.00054794,120]
[357248386,1743942661337,-500.0,0.00054794,120]
[357248387,1743942661346,-522.57729004,0.00054794,120]
[357248388,1743942661356,-500.0,0.00054794,120]
[357248389,1743942661366,-570.02002528,0.00054794,120]
[357248390,1743942661375,-516.40921692,0.00054794,120]
[357248391,1743942661385,-524.12972002,0.00054794,120]
[357248392,1743942661394,-500.0,0.00054794,120]
[357248393,1743942661404,-584.28578111,0.00054794,120]
[357248394,1743942661413,-500.0,0.00054794,120]
[357248395,1743942661423,-326.68654587,0.00054794,120]
[357248396,1743942661432,-518.37687728,0.00054794,120]
[357248397,1743942661441,-520.56994349,0.00054794,120]
[357248398,1743942661450,-500.0,0.00054794,120]
[357248399,1743942661459,-500.0,0.00054794,120]
[357248400,1743942661470,-500.0,0.00054794,120]
[357248401,1743942661480,-500.0,0.00054794,120]
[357248402,1743942661490,-500.0,0.00054794,120]
[357248403,1743942661499,-500.0,0.00054794,120]
[357248404,1743942661510,-500.0,0.00054794,120]
[357248405,1743942661520,-531.57928506,0.00054794,120]
[357248406,1743942661529,-500.0,0.00054794,120]
[357248407,1743942661539,-527.10780589,0.00054794,120]
[357248408,1743942661548,-564.45441503,0.00054794,120]
[357248409,1743942661557,-500.0,0.00054794,120]
[357248410,1743942661566,-595.29591001,0.00054794,120]
[357248411,1743942661575,-301.57287779,0.00054794,120]
[357248412,1743942661585,-538.07330806,0.00054794,120]
[357248413,1743942661594,-500.0,0.00054794,120]
[357248414,1743942661604,-500.0,0.00054794,120]
[357248415,1743942661613,-494.84383345,0.00054794,120]
[357248416,1743942661623,-518.59789719,0.00054794,120]
[357248417,1743942661632,-500.0,0.00054794,120]
[357248418,1743942661641,-500.0,0.00054794,120]
[357248419,1743942661650,-513.20056632,0.00054794,120]
[357248420,1743942661659,-514.1957714,0.00054794,120]
[357248421,1743942661669,-508.66820392,0.00054794,120]
[357248422,1743942661678,-517.90544488,0.00054794,120]
[357248423,1743942661688,-500.0,0.00054794,120]
[357248424,1743942661697,-541.44009872,0.00054794,120]
[357248425,1743942661707,-533.28115567,0.00054794,120]
[357248426,1743942661717,-512.28832275,0.00054794,120]
[357248427,1743942661727,-527.04973202,0.00054794,120]
[357248428,1743942661736,-514.20713652,0.00054794,120]
[357248429,1743942661746,-538.91944704,0.00054794,120]
[357248430,1743942661755,-500.0,0.00054794,120]
[357248431,1743942661765,-500.0,0.00054794,120]
[357248432,1743942661774,-500.0,0.00054794,120]
[357248433,1743942661784,-500.0,0.00054794,120]
[357248434,1743942661793,-500.0,0.00054794,120]
[357248435,1743942661802,-512.0423385,0.00054794,120]
[357248436,1743942661813,-502.21151907,0.00054794,120]
[357248437,1743942661822,-510.4230224,0.00054794,120]
[357248438,1743942661831,-511.47069396,0.00054794,120]
[357248439,1743942661840,-510.44355537,0.00054794,120]
[357248440,1743942661851,-527.27296904,0.00054794,120]
[357248441,1743942661860,-500.0,0.00054794,120]
[357248442,1743942661870,-500.0,0.00054794,120]
[357248443,1743942661879,-522.20560733,0.00054794,120]
[357248444,1743942661889,-500.0,0.00054794,120]
[357248445,1743942661899,-507.68223878,0.00054794,120]
[357248446,1743942661908,-574.45790272,0.00054794,120]
[357248447,1743942661918,-553.85253453,0.00054794,120]
[357248448,1743942661927,-606.84888447,0.00054794,120]
[357248449,1743942661936,-500.0,0.00054794,120]
[357248450,1743942661946,-514.15475309,0.00054794,120]
[357248451,1743942661955,-502.02315676,0.00054794,120]
[357248452,1743942661964,-520.04387821,0.00054794,120]
[357248453,1743942661973,-500.0,0.00054794,120]
[357248454,1743942661982,-500.0,0.00054794,120]
[357248455,1743942661992,-500.0,0.00054794,120]
[357248456,1743942662002,-500.0,0.00054794,120]
[357248457,1743942662012,-500.0,0.00054794,120]
[357248458,1743942662021,-500.0,0.00054794,120]
[357248459,1743942662031,-500.0,0.00054794,120]
[357248460,1743942662040,-500.0,0.00054794,120]
[357248461,1743942662050,-500.0,0.00054794,120]
[357248462,1743942662060,-440.09821255,0.00054794,120]
[357248463,1743942662070,-540.4523957,0.00054794,120]
[357248464,1743942662079,-500.0,0.00054794,120]
[357248465,1743942662089,-500.0,0.00054794,120]
[357248466,1743942662099,-2031.5247527,0.00054794,30]
[357248467,1743942662109,-523.03317014,0.00054794,120]
[357248468,1743942662191,-516.08191238,0.00054794,120]
[357248469,1743942662214,-500.0,0.00054794,120]
[357248470,1743942662223,-500.0,0.00054794,120]
[357248471,1743942662233,-504.04023717,0.00054794,120]
[357248472,1743942662243,-500.0,0.00054794,120]
[357248473,1743942662252,-205.31200498,0.00054794,120]
[357248474,1743942662261,-500.0,0.00054794,120]
[357248475,1743942662270,-530.04836668,0.00054794,120]
[357248476,1743942662280,-510.24806087,0.00054794,120]
[357248477,1743942662290,-1000.0,0.00054794,120]
[357248478,1743942662298,-500.0,0.00054794,120]
[357248479,1743942662309,-500.0,0.00054794,120]
[357248480,1743942662318,-500.0,0.00054794,120]
[357248481,1743942662328,-500.0,0.00054794,120]
[357248482,1743942662337,-521.84326805,0.00054794,120]
[357248483,1743942662347,-500.0,0.00054794,120]
[357248484,1743942662356,-531.62919031,0.00054794,120]
[357248485,1743942662365,-513.08223959,0.00054794,120]
[357248486,1743942662374,-512.8071347,0.00054794,120]
[357248487,1743942662384,-500.0,0.00054794,120]
[357248488,1743942662394,-500.0,0.00054794,120]
[357248489,1743942662403,-262.1442413,0.00054794,120]
[357248490,1743942662414,-542.75644746,0.00054794,120]
[357248491,1743942662423,-500.0,0.00054794,120]
[357248492,1743942662432,-522.45645871,0.00054794,120]
[357248493,1743942662441,-527.08386917,0.00054794,120]
[357248494,1743942662451,-500.0,0.00054794,120]
[357248495,1743942662460,-500.0,0.00054794,120]
[357248496,1743942662469,-500.0,0.00054794,120]
[357248497,1743942662478,-500.0,0.00054794,120]
[357248498,1743942662488,-513.57836974,0.00054794,120]
[357248499,1743942662497,-500.0,0.00054794,120]
[357248500,1743942662507,-522.87496127,0.00054794,120]
[357248501,1743942662516,-500.0,0.00054794,120]
[357248502,1743942662526,-500.0,0.00054794,120]
[357248503,1743942662535,-543.2099774,0.00054794,120]
[357248504,1743942662544,-530.64821313,0.00054794,120]
[357248505,1743942662554,-502.45566965,0.00054794,120]
[357248506,1743942662563,-500.0,0.00054794,120]
[357248507,1743942662572,-520.9268759,0.00054794,120]
[357248508,1743942662581,-526.80793703,0.00054794,120]
[357248509,1743942662590,-500.0,0.00054794,120]
[357248510,1743942662599,-500.0,0.00054794,120]
[357248511,1743942662608,-572.54825981,0.00054794,120]
[357248512,1743942662617,-500.0,0.00054794,120]
[357248513,1743942662626,-226.43999335,0.00054794,120]
[357248514,1743942662635,-458.49637674,0.00054794,120]
[357248515,1743942662644,-505.30203018,0.00054794,120]
[357248516,1743942662653,-513.33370699,0.00054794,120]
[357248517,1743942662663,-509.30790952,0.00054794,120]
[357248518,1743942662672,-528.90640751,0.00054794,120]
[357248519,1743942662681,-500.0,0.00054794,120]
[357248520,1743942662690,-500.0,0.00054794,120]
[357248521,1743942662700,-500.0,0.00054794,120]
[357248522,1743942662709,-366.17326325,0.00054794,120]
[357248523,1743942662718,-500.0,0.00054794,120]
[357248524,1743942662727,-500.0,0.00054794,120]
[357248525,1743942662737,-465.75093538,0.00054794,120]
[357248526,1743942662746,-510.61457131,0.00054794,120]
[357248527,1743942662756,-500.0,0.00054794,120]
[357248528,1743942662765,-500.0,0.00054794,120]
[357248529,1743942662775,-500.0,0.00054794,120]
[357248530,1743942662784,-515.47706744,0.00054794,120]
[357248531,1743942662794,-500.0,0.00054794,120]
[357248532,1743942662803,-512.32134645,0.00054794,120]
[357248533,1743942662812,-500.0,0.00054794,120]
[357248534,1743942662822,-527.02666802,0.00054794,120]
[357248535,1743942662831,-515.19692191,0.00054794,120]
[357248536,1743942662841,-500.0,0.00054794,120]
[357248537,1743942662850,-507.08228718,0.00054794,120]
[357248538,1743942662860,-564.28899534,0.00054794,120]
[357248539,1743942662869,-521.15534438,0.00054794,120]
[357248540,1743942662879,-500.0,0.00054794,120]
[357248541,1743942662888,-506.98550041,0.00054794,120]
[357248542,1743942662898,-510.15313689,0.00054794,120]
[357248543,1743942662907,-508.70943483,0.00054794,120]
[357248544,1743942662917,-512.81751385,0.00054794,120]
[357248545,1743942662926,-500.0,0.00054794,120]
[357248546,1743942662935,-511.56937199,0.00054794,120]
[357248547,1743942662945,-510.07057273,0.00054794,120]
[357248548,1743942662955,-500.0,0.00054794,120]
[357248549,1743942662964,-526.39594509,0.00054794,120]
[357248550,1743942662974,-500.0,0.00054794,120]
[357248551,1743942662983,-514.27034345,0.00054794,120]
[357248552,1743942662993,-512.38007724,0.00054794,120]
[357248553,1743942663003,-513.63826832,0.00054794,120]
[357248554,1743942663012,-503.82386035,0.00054794,120]
[357248555,1743942663021,-504.45889374,0.00054794,120]
[357248556,1743942663031,-508.1096571,0.00054794,120]
[357248557,1743942663040,-500.0,0.00054794,120]
[357248558,1743942663050,-507.84890357,0.00054794,120]
[357248559,1743942663059,-500.0,0.00054794,120]
[357248560,1743942663069,-500.0,0.00054794,120]
[357248561,1743942663078,-500.0,0.00054794,120]
[357248562,1743942663087,-505.58881974,0.00054794,120]
[357248563,1743942663097,-565.07284428,0.00054794,120]
[357248564,1743942663106,-506.69095291,0.00054794,120]
[357248565,1743942663115,-512.28156027,0.00054794,120]
[357248566,1743942663125,-505.03556313,0.00054794,120]
[357248567,1743942663137,-515.13725965,0.00054794,120]
[357248568,1743942663147,-503.91368104,0.00054794,120]
[357248569,1743942663157,-500.0,0.00054794,120]
[357248570,1743942663167,-510.63167703,0.00054794,120]
[357248571,1743942663179,-510.42110662,0.00054794,120]
[357248572,1743942663189,-504.52408647,0.00054794,120]
[357248573,1743942663199,-507.49811609,0.00054794,120]
[357248574,1743942663211,-602.9,0.00054794,120]
[357248575,1743942663220,-509.81067849,0.00054794,120]
[357248576,1743942663230,-541.88989238,0.00054794,120]
[357248577,1743942663239,-528.96811443,0.00054794,120]
[357248578,1743942663249,-504.51947005,0.00054794,120]
[357248579,1743942663259,-500.0,0.00054794,120]
[357248580,1743942663269,-500.0,0.00054794,120]
[357248581,1743942663279,-500.0,0.00054794,120]
[357248582,1743942663289,-520.76225574,0.00054794,120]
[357248583,1743942663298,-500.0,0.00054794,120]
[357248584,1743942663308,-500.0,0.00054794,120]
[357248585,1743942663317,-502.98324772,0.00054794,120]
[357248586,1743942663327,-500.0,0.00054794,120]
[357248587,1743942663336,-500.0,0.00054794,120]
[357248588,1743942663346,-507.34523748,0.00054794,120]
[357248589,1743942663355,-503.93766517,0.00054794,120]
[357248590,1743942663364,-500.0,0.00054794,120]
[357248591,1743942663373,-500.0,0.00054794,120]
[357248592,1743942663382,-500.0,0.00054794,120]
[357248593,1743942663391,-297.90896505,0.00054794,120]
[357248594,1743942663401,-510.40279047,0.00054794,120]
[357248595,1743942663411,-500.0,0.00054794,120]
[357248596,1743942663421,-500.0,0.00054794,120]
[357248597,1743942663430,-500.0,0.00054794,120]
[357248598,1743942663440,-525.18653559,0.00054794,120]
[357248599,1743942663449,-500.0,0.00054794,120]
[357248600,1743942663459,-500.0,0.00054794,120]
[357248601,1743942663469,-500.0,0.00054794,120]
[357248602,1743942663479,-507.93514419,0.00054794,120]
[357248603,1743942663488,-505.99520694,0.00054794,120]
[357248604,1743942663498,-503.6066617,0.00054794,120]
[357248605,1743942663508,-503.28484741,0.00054794,120]
[357248606,1743942663517,-500.0,0.00054794,120]
[357248607,1743942663527,-500.0,0.00054794,120]
[357248608,1743942663536,-535.82594511,0.00054794,120]
[357248609,1743942663545,-505.20939486,0.00054794,120]
[357248610,1743942663555,-500.0,0.00054794,120]
[357248611,1743942663565,-500.0,0.00054794,120]
[357248612,1743942663575,-500.0,0.00054794,120]
[357248613,1743942663584,-500.0,0.00054794,120]
[357248614,1743942663593,-513.55031199,0.00054794,120]
[357248615,1743942663602,-500.0,0.00054794,120]
[357248616,1743942663612,-500.0,0.00054794,120]
[357248617,1743942663621,-500.0,0.00054794,120]
[357248618,1743942663630,-500.0,0.00054794,120]
[357248619,1743942663640,-500.0,0.00054794,120]
[357248620,1743942663649,-507.0869877,0.00054794,120]
[357248621,1743942663659,-505.44765997,0.00054794,120]
[357248622,1743942663668,-500.0,0.00054794,120]
[357248623,1743942663759,-500.0,0.00054794,120]
[357248624,1743942663769,-517.77515847,0.00054794,120]
[357248625,1743942663779,-510.46082482,0.00054794,120]
[357248626,1743942663789,-500.0,0.00054794,120]
[357248627,1743942663798,-500.0,0.00054794,120]
[357248628,1743942663808,-500.0,0.00054794,120]
[357248629,1743942663817,-523.70402624,0.00054794,120]
[357248630,1743942663826,-500.0,0.00054794,120]
[357248631,1743942663836,-507.0121185,0.00054794,120]
[357248632,1743942663845,-500.0,0.00054794,120]
[357248633,1743942663854,-500.0,0.00054794,120]
[357248634,1743942663864,-552.55401708,0.00054794,120]
[357248635,1743942663873,-371.09688829,0.00054794,120]
[357248636,1743942663882,-500.0,0.00054794,120]
[357248637,1743942663892,-510.09695748,0.00054794,120]
[357248638,1743942663901,-500.0,0.00054794,120]
[357248639,1743942663911,-505.88419696,0.00054794,120]
[357248640,1743942663921,-500.0,0.00054794,120]
[357248641,1743942663930,-505.67513393,0.00054794,120]
[357248642,1743942663939,-500.0,0.00054794,120]
[357248643,1743942663949,-506.01133629,0.00054794,120]
[357248644,1743942663959,-506.91841721,0.00054794,120]
[357248645,1743942663969,-500.0,0.00054794,120]
[357248646,1743942663978,-500.0,0.00054794,120]
[357248647,1743942663987,-500.0,0.00054794,120]
[357248648,1743942663997,-519.65467701,0.00054794,120]
[357248649,1743942664006,-515.44413636,0.00054794,120]
[357248650,1743942664015,-506.04726109,0.00054794,120]
[357248651,1743942664024,-504.56163586,0.00054794,120]
[357248652,1743942664034,-500.0,0.00054794,120]
[357248653,1743942664043,-537.08990208,0.00054794,120]
[357248654,1743942664053,-500.0,0.00054794,120]
[357248655,1743942664063,-508.63151282,0.00054794,120]
[357248656,1743942664073,-504.53741448,0.00054794,120]
[357248657,1743942664082,-534.50195626,0.00054794,120]
[357248658,1743942664091,-500.0,0.00054794,120]
[357248659,1743942664101,-500.0,0.00054794,120]
[357248660,1743942664111,-500.0,0.00054794,120]
[357248661,1743942664120,-500.0,0.00054794,30]
[357248662,1743942664130,-504.22369574,0.00054794,120]
[357248663,1743942664142,-508.26067738,0.00054794,120]
[357248664,1743942664151,-500.0,0.00054794,120]
[357248665,1743942664161,-500.0,0.00054794,120]
[357248666,1743942664170,-500.0,0.00054794,120]
[357248667,1743942664181,-500.0,0.00054794,120]
[357248668,1743942664190,-500.0,0.00054794,120]
[357248669,1743942664199,-500.0,0.00054794,120]
[357248670,1743942664208,-505.28779927,0.00054794,120]
[357248671,1743942664219,-500.0,0.00054794,120]
[357248672,1743942664229,-500.0,0.00054794,120]
[357248673,1743942664238,-500.0,0.00054794,120]
[357248674,1743942664247,-500.0,0.00054794,120]
[357248675,1743942664257,-516.60692818,0.00054794,120]
[357248676,1743942664268,-500.0,0.00054794,120]
[357248677,1743942664278,-500.0,0.00054794,120]
[357248678,1743942664287,-533.01158882,0.00054794,120]
[357248679,1743942664297,-500.0,0.00054794,120]
[357248680,1743942664306,-500.0,0.00054794,120]
[357248681,1743942664315,-500.0,0.00054794,120]
[357248682,1743942664325,-500.0,0.00054794,120]
[357248683,1743942664334,-522.51840801,0.00054794,120]
[357248684,1743942664343,-500.0,0.00054794,120]
[357248685,1743942664353,-500.0,0.00054794,120]
[357248686,1743942664362,-500.0,0.00054794,120]
[357248687,1743942664372,-505.89452858,0.00054794,120]
[357248688,1743942664382,-508.79589522,0.00054794,120]
[357248689,1743942664392,-518.69500196,0.00054794,120]
[357248690,1743942664402,-500.0,0.00054794,120]
[357248691,1743942664412,-500.0,0.00054794,120]
[357248692,1743942664421,-500.0,0.00054794,120]
[357248693,1743942664431,-500.0,0.00054794,120]
[357248694,1743942664440,-500.0,0.00054794,120]
[357248695,1743942664450,-500.0,0.00054794,120]
[357248696,1743942664460,-500.0,0.00054794,120]
[357248697,1743942664472,-500.0,0.00054794,120]
[357248698,1743942664482,-500.0,0.00054794,120]
[357248699,1743942664491,-506.56828278,0.00054794,120]
[357248700,1743942664501,-500.0,0.00054794,120]
[357248701,1743942664511,-500.0,0.00054794,120]
[357248702,1743942664520,-500.0,0.00054794,120]
[357248703,1743942664530,-500.0,0.00054794,120]
[357248704,1743942664539,-500.0,0.00054794,120]
[357248705,1743942664548,-569.06034959,0.00054794,120]
[357248706,1743942664558,-500.0,0.00054794,120]
[357248707,1743942664567,-500.0,0.00054794,120]
[357248708,1743942664576,-513.4868999,0.00054794,120]
[357248709,1743942664586,-500.0,0.00054794,120]
[357248710,1743942664596,-500.0,0.00054794,120]
[357248711,1743942664605,-502.91037115,0.00054794,120]
[357248712,1743942664615,-500.0,0.00054794,120]
[357248713,1743942664624,-500.0,0.00054794,120]
[357248714,1743942664635,-510.00281743,0.00054794,120]
[357248715,1743942664644,-500.0,0.00054794,120]
[357248716,1743942664653,-500.0,0.00054794,120]
[357248717,1743942664663,-500.0,0.00054794,60]
[357248718,1743942664672,-500.0,0.00054794,120]
[357248719,1743942664682,-505.00932274,0.00054794,120]
[357248720,1743942664691,-500.0,0.00054794,120]
[357248721,1743942664702,-500.0,0.00054794,120]
[357248722,1743942664712,-500.0,0.00054794,120]
[357248723,1743942664721,-507.76876686,0.00054794,120]
[357248724,1743942664730,-510.40100332,0.00054794,120]
[357248725,1743942664740,-504.17443907,0.00054794,120]
[357248726,1743942664749,-500.0,0.00054794,120]
[357248727,1743942664759,-500.0,0.00054794,120]
[357248728,1743942664768,-510.56422099,0.00054794,120]
[357248729,1743942664777,-500.0,0.00054794,120]
[357248730,1743942664786,-500.0,0.00054794,120]
[357248731,1743942664795,-500.0,0.00054794,120]
[357248732,1743942664804,-500.0,0.00054794,120]
[357248733,1743942664814,-500.0,0.00054794,120]
[357248734,1743942664823,-500.96378029,0.00054794,120]
[357248735,1743942664833,-500.0,0.00054794,120]
[357248736,1743942664842,-500.0,0.00054794,120]
[357248737,1743942664852,-500.0,0.00054794,120]
[357248738,1743942664861,-500.0,0.00054794,120]
[357248739,1743942664872,-508.82158095,0.00054794,120]
[357248740,1743942664881,-1000.0,0.00054794,2]
[357248741,1743942664890,-1000.0,0.00054794,2]
[357248742,1743942664899,-500.0,0.00054794,120]
[357248743,1743942664909,-1000.0,0.00054794,2]
[357248744,1743942664918,-1000.0,0.00054794,2]
[357248745,1743942664928,-500.0,0.00054794,120]
[357248746,1743942664937,-500.0,0.00054794,120]
[357248747,1743942664946,-1000.0,0.00054794,2]
[357248748,1743942664956,-1000.0,0.00054794,2]
[357248749,1743942664965,-524.25354311,0.00054794,120]
[357248750,1743942664975,-1000.0,0.00054794,2]
[357248751,1743942664984,-1000.0,0.00054794,2]
[357248752,1743942664994,-1102.42531789,0.00054794,2]
[357248753,1743942665003,-500.0,0.00054794,120]
[357248754,1743942665012,-500.0,0.00054794,120]
[357248755,1743942665022,-507.3628671,0.00054794,120]
[357248756,1743942665031,-500.0,0.00054794,120]
[357248757,1743942665041,-500.0,0.00054794,120]
[357248758,1743942665050,-521.29260575,0.00054794,120]
[357248759,1743942665060,-500.0,0.00054794,120]
[357248760,1743942665069,-500.0,0.00054794,120]
[357248761,1743942665079,-500.0,0.00054794,120]
[357248762,1743942665088,-500.0,0.00054794,120]
[357248763,1743942665097,-504.23341057,0.00054794,120]
[357248764,1743942665107,-500.0,0.00054794,120]
[357248765,1743942665117,-502.50845894,0.00054794,120]
[357248766,1743942665201,-500.0,0.00054794,120]
[357248767,1743942665212,-500.0,0.00054794,120]
[357248768,1743942665222,-500.0,0.00054794,120]
[357248769,1743942665232,-500.0,0.00054794,120]
[357248770,1743942665243,-515.00651903,0.00054794,120]
[357248771,1743942665253,-500.0,0.00054794,120]
[357248772,1743942665263,-500.0,0.00054794,120]
[357248773,1743942665272,-500.0,0.00054794,120]
[357248774,1743942665281,-500.0,0.00054794,120]
[357248775,1743942665291,-553.15632926,0.00054794,120]
[357248776,1743942665301,-500.0,0.00054794,120]
[357248777,1743942665311,-506.47233536,0.00054794,120]
[357248778,1743942665321,-500.0,0.00054794,120]
[357248779,1743942665331,-513.18948668,0.00054794,120]
[357248780,1743942665340,-500.0,0.00054794,120]
[357248781,1743942665350,-456.66877997,0.00054794,120]
[357248782,1743942665360,-500.0,0.00054794,120]
[357248783,1743942665370,-500.0,0.00054794,120]
[357248784,1743942665380,-541.20501152,0.00054794,120]
[357248785,1743942665389,-500.0,0.00054794,120]
[357248786,1743942665399,-500.0,0.00054794,120]
[357248787,1743942665409,-500.0,0.00054794,120]
[357248788,1743942665419,-500.0,0.00054794,120]
[357248789,1743942665428,-517.57586866,0.00054794,120]
[357248790,1743942665438,-500.0,0.00054794,120]
[357248791,1743942665448,-508.79280467,0.00054794,120]
[357248792,1743942665458,-531.8274778,0.00054794,120]
[357248793,1743942665468,-500.0,0.00054794,120]
[357248794,1743942665478,-500.0,0.00054794,120]